Workbook

Sheet Instructions
A1: Energy Data Worksheet: Instructions for Completion | D1: Cradle to Cradle Certified™ Products Program
A2: Introduction
B3: Renewable Energy and Carbon Management – Cradle to Cradle products are manufactured in a way that positively impacts our energy supply, ecosystem balance, community, and ultimately strives to keep carbon in soil and earth vegetation where it belongs.
B5: The intention of this category is to provide a quantitative measure of the percentage of renewably generated energy that is utilized in the manufacture of the product. Purchased electricity and direct on- site emissions associated with the final manufacturing stage of the product, as well as embodied energy associated with the product from Cradle to Gate are considered, depending on the level of certification.
A7: Requirements
B9: BASIC | C9: Annual purchased electricity and direct on-site emissions associated with the final manufacturing stage of the product are quantified.
B11: BRONZE | C11: A renewable energy use and carbon management strategy is developed.
B13: SILVER | C13: For the final manufacturing stage of the product, 5% of purchased electricity is renewably sourced or offset with renewable energy projects, and 5% of direct on- site emissions are offset.
B15: GOLD | C15: For the final manufacturing stage of the product, 50% of purchased electricity is renewably sourced or offset with renewable energy projects, and 50% of direct on- site emissions are offset.
B17: PLATINUM | C17: For the final manufacturing stage of the product, >100% of purchased electricity is renewably sourced or offset with renewable energy projects, and >100% of direct on-site emissions are offset.
C18: The embodied energy associated with the product from Cradle to Gate is characterized and quantified, and a strategy to optimize is developed. At re- application, progress on the optimization plan is demonstrated.
C19: ≥ 5% of the embodied energy associated with the product from Cradle to Gate is covered by offsets or otherwise addressed (e.g., through projects with suppliers, product re-design, savings during the use phase, etc.).
A21: Instructions
B23: Fill out energy inventory to characterize Basic energy sources and uses
B24: The energy use and emissions calculations must pertain to the final manufacturing stage of the product only, rather than to all of the product relevant processes at the facility. The intent of this is to establish an even playing field for manufacturers with varying levels of vertical integration and to measure energy used for similar processes. Processes that are considered to represent the final manufacturing stage may be further clarified on an industry-specific basis in the future, but initially the applicant, together with the assessor, will define the scope.
B26: Most will use the standard Energy Inventory worksheet to calculate energy and emissions.
B27: If you would like to convert all energy and emissions information to CO2 equivalents for the purpose of using verified carbon offsets for renewable energy generation to cover the entire scope of emissions, you will need to use the Alternate Energy Inventory worksheet.
A30: BASIC | B30: 1 | C30: List sources of electrical energy for the facility, including purchased electricity and on-site renewable electricity (Table 1a/1b)
C31: a. List the amount of purchased electricity used annually. If the electricity supplier uses renewable energy and the applicant wishes to claim that renewable energy as part of the production process, verification must be provided that this renewable electricity is being delivered to the applicant, and is not being double counted elsewhere in the system. Purchased electricity must be reported in terms of kilowatt hours (kWh). Also note that overhead operations including facility air conditioning and lighting may be considered non-attributable (see the Greenhouse Gas (GHG) Protocol Product Standard for detail). Even so, if it is not possible to separate these from the total, they may be included.
C32: b. List any electricity purchased through Green Pricing Programs, or voluntary premium pricing on renewable electricity supplied by a utility.
C33: c. List electricity generated via on-site renewables, including the energy type and location. (Note that on-site renewable energy that does not produce electricity should be reported in step 2)
C34: d. Compliant Renewable Energy Certificates (RECs) may be listed in table 2b. REC certificates should be provided as evidence of meeting the requirement. RECs should be from voluntary programs and should be purchased based on the most recent years electricity use data.
C35: e. Allocate all energy sources to the final manufacturing stage of the applicant product. The final manufacturing stage generally refers to the processes which transform the product from raw materials into a finished product, and are to be agreed between the applicant and the assessor. Indicate how these allocations were estimated.
B36: 2 | C36: List sources of direct on-site emissions (Table 2a/2b)
C37: a. List sources of CO2 and other greenhouse gas emissions from on-site sources directly related to the manufacture of the product. Be sure to include all on-site fuel uses relevant to the product, such as gasoline for company owned vehicles, propane, etc. when attributable to the product. Also be sure to include any relevant product-attributable, non-energy related emissions, such as methane from water treatment ponds, fugitive emissions from refrigerants, and/or carbon dioxide from cement production.
C38: b. List any renewable, bio-based fuel sources used on site. These may be used to calculate avoided emissions of fossil fuel or synthetic waste combustion. (Table 2a)
C39: c. Calculate all emissions totals in tCO2e (tons carbon dioxide equivalents), using emissions factors. Emissions factors for several common fuels will populate automatically, given fuel quantity in the appropriate units. Sources for other relevant emissions factors include the World Resources Institute (2008) and the GHG Protocol tool for stationary combustion.
B40: 3 | C40: List verified carbon offsets for managing on-site emissions
C41: a. A carbon offset represents a specific quantity of greenhouse gas (GHG) emission reductions (i.e. a ton of carbon dioxide sequestered or avoided) from a project based activity, which is purchased in order to negate or diminish the impact of the recipient's GHG emissions. Carbon offsets are appropriate for emissions generated at the manufacturing site, which can not otherwise be avoided. Offsets should be from verified carbon offset registries.
B42: ALTERNATIVE | C42: Convert all electricity and emissions to CO2 equivalents, and offset all energy uses
C43: a. Alternatively to the above, carbon emissions equivalents may be accounted for all energy, including purchased energy and on-site emissions, using the provided alternative inventory sheet (Alternative Energy Inventory). Verified carbon offsets may only be used to compensate for electrical energy use only if the carbon offset projects selected promote the development of new renewable energy projects, and only if electrical energy has been converted to CO2 equivalents.
A44: BRONZE | B44: 4 | C44: Create a plan to use renewable energy and manage on-site carbon emissions
C45: Demonstrate a commitment to renewable energy use, and establish benchmarks in achieving renewable energy goals. This requirement is not reflected in the worksheets. Please work with the assessor and refer to the Cradle to Cradle Certified Product Standard for more guidance on developing a strategy and plan.
C46: The intent of this requirement is to challenge manufacturers to develop a strategy that not only increases renewable energy use and reduces carbon emissions, but also achieves the ultimate goal of using > 100% renewable energy in the final manufacturing stages of the product.
A47: SILVER/GOLD/PLATINUM | B47: 5 | C47: Use renewable energy and manage on-site carbon emissions
C48: a. The provided worksheets are designed to help calculate the total energy needed in the final stage of manufacture of the product, the portion of renewable electricity used, and the emissions that must be managed.
C49: b. On Site Renewables: Calculate the percentage of on-site renewable electricity generation as a proportion of the overall purchased electricity attributed to the final manufacturing stage of the product based on data from the previous year. To meet the renewable electricity use requirement for a particular level, the remaining percentage of renewable electricity must be compensated for by the purchase of RECs or offsets.
C50: c. Renewable Energy Credits (RECs): If purchasing RECs to compensate for the percent of renewable electricity required, the RECs must be from voluntary programs (as opposed to compliance programs). In the U.S., Green-e RECs must be purchased. Outside the U.S., the use of equivalent, verified RECs is appropriate. It is important to ensure that RECs are not double counted and the applicant has valid claim to the use of the renewable energy attribute provided.
C51: d. Offsets supporting Renewable Energy: Registered carbon offsets that support renewable energy projects may be used in place of RECs for purchased electricity; however, in this case the electricity needs to be converted to metric tons CO2 equivalents (tCO2e) using the utility or regional grid energy mix. Renewable energy in a grid or regional mix will result in lower emissions overall, so that the amounts of offsets are less than if energy was produced from fossil fuel sources.
B52: 6 | C52: Calculate and compensate for embodied energy
C53: The requirement to quantify and compensate for embodied energy of a product is not reflected in this worksheet. Please work with the assessor and refer to the Cradle to Cradle Certified Product Standard for more guidance on calculating embodied energy of the product.
B55: Energy Data Worksheet / Effective September 11, 2020 / Approved by M. Kausch / Cradle to Cradle Certified™ Products Program

Sheet Energy Inventory
A1: Cradle to Cradle Certified(CM) Basic level and above
A2: Energy Data Worksheet: Using On-site renewables, RECs, and Off-sets | K2: Cradle to Cradle Certified™ Products Program
A3: Fill in these tables when onsite renewables, Green power pricing, and/or Renewable Energy Certificates (RECs) are being used to cover purchased electricity, and carbon offsets and/or renewable on-site combustion is being used to cover other emissions. Note that RECs apply only to purchased electricity and do not count toward direct emissions reductions.
A4: Facility Information | H4: Goal | I4: Actual
A5: Manufacturing Facility Name: | G5: Renewable electricity goal (%): | I5: =D57 -> 
A6: Address: | G6: Emissions offset goal (%): | I6: =K56 -> 
A7: Date range of data:
G8: Emissions
G9: Offsets/Renewables
A11: Table 1a: Annual purchased and onsite renewable electricity (including conventional and renewable electricity purchased through the utility, and renewable electricity produced on site)
A12: energy type | B12: % of source considered renewable | C12: total quantity of electricity use (annual use) | D12: UNIT (please use kWh) | E12: % allocated to product final manufacture | F12: final production electricity (kWh) | G12: % renewable electricity in product, by source | H12: comment (Please include comment regarding: allocation assumptions, electricity use data sources, provider name, and list any provided documentation.)
A13: Conventional purchased electricity - residual grid mix | D13: kWh | F13: =C13*E13 -> 0 | G13: =(B13*F13)/$F$17 -> 
A14: Green power purchased through utility | D14: kWh | F14: =C14*(E14) -> 0 | G14: =(B14*F14)/$F$17 -> 
A15: Onsite renewable electricity | D15: kWh | F15: =C15*(E15) -> 0 | G15: =(B15*F15)/$F$17 -> 
A17: Total electricity use: | C17: =SUM(C13:C16) -> 0 | D17: kWh | F17: =SUM(F13:F16) -> 0 | G17: =SUM(G13:G16) -> 
A18: Table 1b: Annual purchase of Renewable Energy Certificates (RECs) / Guarantees of Origin
A19: Purchased RECs | D19: kWh | F19: =C19*E19 -> 0 | G19: =F19/F17 -> 
C21: Total % product relevant renewable electricity: | G21: =SUM(G17:G20) -> 
A23: Table 2: Annual GHG emissions - Direct onsite emissions from stationary combustion and other sources
A24: source/fuel (fossil; non-biomass waste-to-energy; non-renewable; other GHG discharges) | B24: total quantity | C24: UNIT (select) | D24: emission factor (tCO2e/[unit of fuel or mass of direct emission]) | E24: emissions (tCO2e) | F24: % allocation to final manufacture of product | G24: product final manufacture emissions (tCO2e) | H24: comment (Please include comment regarding: allocation assumptions, fuel use data sources, other on-site emissions assumptions, and list any provided documentation.)
A25: natural gas | C25: m3 | D25: =IF(C25="","",VLOOKUP(C25,'CO2 Emission Factors'!B4:C10,2,FALSE)) -> 1.89E-03 | E25: =IF(B25=0,"",B25*D25) ->  | G25: =IF(B25=0,"",E25*F25) -> 
A26: liquefied petroleum distillates (LPG) including propane | C26: liter | D26: =IF(C26="","",VLOOKUP(C26,'CO2 Emission Factors'!B11:C12,2,FALSE)) -> 1.61E-03
A27: motor gasoline | C27: liter | D27: =IF(C27="","",VLOOKUP(C27,'CO2 Emission Factors'!B13:C14,2,FALSE)) -> 2.28E-03
A28: diesel | C28: liter | D28: =IF(C28="","",VLOOKUP(C28,'CO2 Emission Factors'!B15:C16,2,FALSE)) -> 2.69E-03
A29: [list all other sources]
A30: plastic production waste | C30: metric tons | D30: 3.14E+00
A31: CH4 emissions from water treatment pond | C31: metric tons | D31: 7.20E+01 | G31: =IF(B31=0,"",E31*F31) -> 
A32: biomass: wood (not offset exempt - see reference in table below) | C32: kg | D32: =IF(C32="","",VLOOKUP(C32,'CO2 Emission Factors'!B17:C18,2,FALSE)) -> 1.78E-03 | G32: =IF(B32=0,"",E32*F32) -> 
B34: Direct on-site emissions (fossil; non-renewable): | E34: =SUM(E25:E33) -> 0.0 | F34: =G34/E34 ->  | G34: =SUM(G25:G33) -> 0.0
A36: source/fuel (renewable; biomass) | B36: total quantity | C36: UNIT (select) | D36: emission factor (tCO2e/unit of fuel) | E36: emissions (tCO2e) | F36: % allocated to product final manufacture | G36: product final manufacture emissions (tCO2e) | H36: comment (Please include comment regarding: allocation assumptions, fuel use data sources, other on-site emissions assumptions, and list any provided documentation.)
A37: biomass: woody waste (offset exempt - sourced per reference in column I) | C37: kg | D37: =IF(C37="","",VLOOKUP(C37,'CO2 Emission Factors'!B17:C18,2,FALSE)) -> 1.78E-03 | E37: =IF(B37=0,"",B37*D37) ->  | G37: =IF(B37=0,"",E37*F37) ->  | H37: Reference for eligible sources: Green-e® Renewable Energy Standard for Canada and the United States ('Appendix D') https://www.green-e.org/programs/energy/documents
A38: [list all other eligible sources] | E38: =IF(B38=0,"",B38*D38) ->  | G38: =IF(B38=0,"",E38*F38) -> 
E39: =IF(B39=0,"",B39*D39) ->  | G39: =IF(B39=0,"",E39*F39) -> 
E40: =IF(B40=0,"",B40*D40) ->  | G40: =IF(B40=0,"",E40*F40) -> 
B41: Direct on-site emissions (renewable; biomass): | E41: =SUM(E37:E40) -> 0.0 | F41: =G41/E41 ->  | G41: =SUM(G37:G40) -> 0.00
A43: Table 3: Purchased carbon offsets
A44: offset project name | B44: project type | C44: offset registry | D44: project location | E44: purchase date | F44: total offsets purchase (tCO2e) | G44: % allocated to product final manufacture | H44: product relevant offsets (tCO2e) | I44: comment (Provide receipt of purchase for offsets including amount purchased, seller name, project type, etc. as indicated in supporting guidance)
H45: =F45*G45 -> 0.00
F48: =SUM(F45:F47) -> 0.0 | H48: =SUM(H45:H47) -> 0.0
A50: Table 4a: Renewable energy - Product totals | F50: Table 4b: GHG emissions - Product totals, adjustments and offset purchase requirements
A51: Purchased Electricity | F51: On-site Emissions
A52: Product relevant electricity use (kWh) | D52: =F17 -> 0 | F52: Direct emissions (fossil; non-renewable) (tCO2e) | K52: =G34 -> 0.0
A53: Renewable electricity through utility (Green power pricing) (kWh) | D53: =F14 -> 0 | F53: Direct emissions (biomass; renewable) (tCO2e) - Exempt from offset requirement | K53: =G41 -> 0.00
A54: On-site renewable electricity (kWh) | D54: =F15 -> 0 | F54: Emissions to be offset (tCO2e) | K54: =K52 -> 0.0
A55: Purchased RECS (kWh) | D55: =F19 -> 0 | F55: Carbon offsets purchased | K55: =H48 -> 0.00
A56: Total Renewable electricity (kWh) | D56: =SUM(D53:D55) -> 0 | F56: % direct emissions offset/avoided | K56: =K55/K54 -> 
A57: % Renewable energy | D57: =D56/D52 -> 
A59: Supporting documentation: Please provide receipts of purchase for offsets, RECs/GOs, and energy (e.g. utility bills) including amounts purchased, seller name, project type (for offsets), and certifications (e.g. Green-e for RECs)

Sheet Alternate Energy Inventory
A1: Cradle to Cradle Certified(CM) Silver level and above
A2: Energy Data Worksheet: Alternate Inventory Option - Using only carbon off-sets | K2: Cradle to Cradle Certified™ Products Program
A3: Fill in these tables when only carbon offsets will be employed. If Renewable Energy Certificates (RECs) and/or on-site renewables are in use, please fill in the 'Energy Inventory' sheet
A4: Facility information
A5: Facility name:
A6: Address: | H6: Goal | I6: Actual
A7: Country: | G7: Emissions offset goal (%): | I7: =F53 -> 
A8: US eGRID region:
A9: Date range of data: | F9: Emissions
F10: Offsets
A12: Table 5: Annual GHG emissions - Purchased electricity and heat
A13: purchased source | B13: total quantity | C13: UNIT | D13: % allocation to final manufacture of product | E13: product electricity-final manufacturing (assuming same units) | F13: emission factor (tCO2e/MWh) | G13: product emissions - final manufacturing stage (tCO2e) | H13: nuclear factor (multiplier) Assumes electricity is in units of MWh | I13: purchased electricity and heat - adjusted product emissions (tCO2e) | J13: Comment
A14: purchased electricity - residual grid mix | C14: MWh | E14: =IF(B14=0,"",B14*D14) ->  | F14: =IF(B7="United States",VLOOKUP(B8,'CO2 Emission Factors'!I4:M29,5,FALSE),VLOOKUP(B7,'CO2 Emission Factors'!F4:G145,2,FALSE)) ->  | G14: =IF(B14=0,"",E14*F14) ->  | H14: =IFERROR(VLOOKUP(B7,Table1[],3,FALSE),) -> 0.00 | I14: =IF(H14="need to calculate","",(H14*E14)+G14) -> 
A15: purchased heat | C15: mmBtu | E15: =IF(B15=0,"",B15*D15) ->  | G15: =IF(B15=0,"",E15*F15) ->  | I15: =IF(H15="","",(H15*E15)+G15) -> 
E16: =IF(B16=0,"",B16*D16) ->  | G16: =IF(B16=0,"",E16*F16) ->  | I16: =IF(H16="","",(H16*E16)+G16) -> 
G17: =SUM(G14:G16) -> 0.0 | H17: Total: | I17: =SUM(I14:I16) -> 
A19: Table 6: Annual GHG emissions - Direct onsite emissions from stationary combustion and other sources
A20: direct source | B20: total quantity | C20: UNIT (select) | D20: emission factor (tCO2e/[unit of fuel or mass of direct emission]) | E20: total emissions (tCO2e) | F20: % allocation to final manufacture of product | G20: direct product emissions - final manufacture stage (tCO2e) | H20: comment (Please include comment regarding: allocation assumptions, fuel use data sources, other on-site emissions assumptions, and list any provided documentation.)
A21: natural gas | C21: m3 | D21: =IF(C21="","",VLOOKUP(C21,'CO2 Emission Factors'!B4:C10,2,FALSE)) -> 1.89E-03 | E21: =IF(B21=0,"",B21*D21) ->  | G21: =IF(B21=0,"",E21*F21) -> 
A22: liquefied petroleum distillates (LPG) including propane | C22: liter | D22: =IF(C22="","",VLOOKUP(C22,'CO2 Emission Factors'!B11:C12,2,FALSE)) -> 1.61E-03
A23: motor gasoline | C23: liter | D23: =IF(C23="","",VLOOKUP(C23,'CO2 Emission Factors'!B13:C14,2,FALSE)) -> 2.28E-03
A24: diesel | C24: liter | D24: =IF(C24="","",VLOOKUP(C24,'CO2 Emission Factors'!B15:C16,2,FALSE)) -> 2.69E-03
A25: [list all other sources]
A26: plastic production waste - Waste to Energy combustion | C26: metric tons | D26: 3.14E+00
A27: CH4 emissions from water treatment pond | C27: metric tons | D27: 7.20E+01 | G27: =IF(B27=0,"",E27*F27) -> 
A28: biomass: wood (not offset exempt - see reference in table below) | C28: kg | D28: =IF(C28="","",VLOOKUP(C28,'CO2 Emission Factors'!B17:C18,2,FALSE)) -> 1.78E-03 | G28: =IF(B28=0,"",E28*F28) -> 
E29: =IF(B29=0,"",B29*D29) ->  | G29: =IF(B29=0,"",E29*F29) -> 
D30: Total: | E30: =SUM(E21:E29) -> 0.0 | F30: =G30/E30 ->  | G30: =SUM(G21:G29) -> 0.00
A32: source/fuel (renewable; biomass) | B32: total quantity | C32: UNIT (select) | D32: emission factor (tCO2e/unit of fuel) | E32: emissions (tCO2e) | F32: % allocated to product final manufacture | G32: product final manufacture emissions (tCO2e) | H32: comment (Please include comment regarding: allocation assumptions, fuel use data sources, other on-site emissions assumptions, and list any provided documentation.)
A33: biomass: woody waste (offset exempt - sourced per reference in column I) | C33: kg | D33: =IF(C33="","",VLOOKUP(C33,'CO2 Emission Factors'!B17:C18,2,FALSE)) -> 1.78E-03 | E33: =IF(B33=0,"",B33*D33) ->  | G33: =IF(B33=0,"",E33*F33) ->  | H33: Reference for eligible sources: Green-e® Renewable Energy Standard for Canada and the United States ('Appendix D') https://www.green-e.org/programs/energy/documents
A34: [list all other sources] | E34: =IF(B34=0,"",B34*D34) ->  | G34: =IF(B34=0,"",E34*F34) -> 
E35: =IF(B35=0,"",B35*D35) ->  | G35: =IF(B35=0,"",E35*F35) -> 
E36: =IF(B36=0,"",B36*D36) ->  | G36: =IF(B36=0,"",E36*F36) -> 
B37: Direct on-site emissions (renewable; biomass): | E37: =SUM(E33:E36) -> 0.0 | F37: =G37/E37 ->  | G37: =SUM(G33:G36) -> 0.00
A39: Table 7: Purchased Carbon Offsets
A40: offset Project Name | B40: project Type | C40: offset Registry | D40: project Location | E40: purchase Date | F40: total offsets purchase (tCO2e) | G40: % allocated to product final manufacture | H40: Product relevant offsets (tCO2e) | I40: Comment
H41: =G41*F41 -> 0.00
F44: =SUM(F41:F43) -> 0.0 | G44: Total: | H44: =SUM(H41:H43) -> 0.0
A46: Table 8: GHG emissions - Product Totals
A47: purchased electricity and heat GHG emissions (tCO2e) | F47: =I17 -> 
A48: on site GHG emissions from conventional sources, and non-fuel (tCO2e) | F48: =G30 -> 0.00
A49: on site emissions from renewable sources (tCO2e) - Exempt from offset requirement | F49: =G37 -> 0.00
A50: GHG emissions total from non-exempt sources (tCO2e) | F50: =F48+F47 -> 
A51: quantity of carbon offsets purchased (tCO2e) | F51: =H44 -> 0.0
A52: adjusted total after offset purchase (tCO2e) | F52: =F50-F51 -> 
A53: % GHG emissions offset | F53: =F51/F50 -> 
A55: Supporting documentation: Please provide receipts of purchase for offsets and energy (e.g. utility bills) including amounts purchased, seller name, project type and standard (for offsets).

Sheet Nuclear Factors
A1: Nuclear factors
A2: These factors are to be used with the "Alternative Energy Inventory" worksheet. Factors are for electricity generated using nuclear power, if using a grid emissions factor based on regional or countrywide average. The multiplier is calculated as follows: % nuclear*(0.891 tCO2/MWh) = Emissions that would have resulted if using coal instead of nuclear (tCO2/MWh). 0.891 tCO2/MWh = emissions factor for electricity produced from coal.
A3: Country | B3: Nuclear share of electricity production | C3: Multiplier (for energy reported in MWh)
A4: Argentina | B4: 4.40% | C4: =Table1[[#This Row],[Nuclear share of electricity production]]*0.891 -> 0.039204
A5: Armenia | B5: 29.20% | C5: =Table1[[#This Row],[Nuclear share of electricity production]]*0.891 -> 0.260172
A6: Belgium | B6: 52.10% | C6: =Table1[[#This Row],[Nuclear share of electricity production]]*0.891 -> 0.464211
A7: Brazil | B7: 2.80% | C7: =Table1[[#This Row],[Nuclear share of electricity production]]*0.891 -> 0.024948
A8: Bulgaria | B8: 30.70% | C8: =Table1[[#This Row],[Nuclear share of electricity production]]*0.891 -> 0.273537
A9: Canada | B9: 16.00% | C9: =Table1[[#This Row],[Nuclear share of electricity production]]*0.891 -> 0.14256
A10: China (mainland) | B10: 2.10% | C10: =Table1[[#This Row],[Nuclear share of electricity production]]*0.891 -> 0.018711
A11: China (Taiwan) | B11: 19.10% | C11: =Table1[[#This Row],[Nuclear share of electricity production]]*0.891 -> 0.170181
A12: Czech Republic | B12: 35.90% | C12: =Table1[[#This Row],[Nuclear share of electricity production]]*0.891 -> 0.319869
A13: Finland | B13: 33.30% | C13: =Table1[[#This Row],[Nuclear share of electricity production]]*0.891 -> 0.296703
A14: France | B14: 73.30% | C14: =Table1[[#This Row],[Nuclear share of electricity production]]*0.891 -> 0.653103
A15: Germany | B15: 15.50% | C15: =Table1[[#This Row],[Nuclear share of electricity production]]*0.891 -> 0.138105
A16: Hungary | B16: 50.70% | C16: =Table1[[#This Row],[Nuclear share of electricity production]]*0.891 -> 0.451737
A17: India | B17: 3.50% | C17: =Table1[[#This Row],[Nuclear share of electricity production]]*0.891 -> 0.031185
A18: Islamic Republic of Iran | B18: 1.50% | C18: =Table1[[#This Row],[Nuclear share of electricity production]]*0.891 -> 0.013365
A19: Japan | B19: 1.70% | C19: =Table1[[#This Row],[Nuclear share of electricity production]]*0.891 -> 0.015147
A20: Korea | B20: 27.60% | C20: =Table1[[#This Row],[Nuclear share of electricity production]]*0.891 -> 0.245916
A21: Lithuania | B21: 0.00% | C21: =Table1[[#This Row],[Nuclear share of electricity production]]*0.891 -> 0
A22: Mexico | B22: 4.60% | C22: =Table1[[#This Row],[Nuclear share of electricity production]]*0.891 -> 0.040986
A23: Netherlands | B23: 2.80% | C23: =Table1[[#This Row],[Nuclear share of electricity production]]*0.891 -> 0.024948
A24: Pakistan | B24: 4.40% | C24: =Table1[[#This Row],[Nuclear share of electricity production]]*0.891 -> 0.039204
A25: Romania | B25: 19.80% | C25: =Table1[[#This Row],[Nuclear share of electricity production]]*0.891 -> 0.176418
A26: Russia | B26: 17.50% | C26: =Table1[[#This Row],[Nuclear share of electricity production]]*0.891 -> 0.155925
A27: Slovakia | B27: 51.70% | C27: =Table1[[#This Row],[Nuclear share of electricity production]]*0.891 -> 0.460647
A28: Slovenia | B28: 33.60% | C28: =Table1[[#This Row],[Nuclear share of electricity production]]*0.891 -> 0.299376
A29: South Africa | B29: 5.70% | C29: =Table1[[#This Row],[Nuclear share of electricity production]]*0.891 -> 0.050787
A30: Spain | B30: 19.70% | C30: =Table1[[#This Row],[Nuclear share of electricity production]]*0.891 -> 0.175527
A31: Sweden | B31: 42.70% | C31: =Table1[[#This Row],[Nuclear share of electricity production]]*0.891 -> 0.380457
A32: Switzerland | B32: 36.40% | C32: =Table1[[#This Row],[Nuclear share of electricity production]]*0.891 -> 0.324324
A33: United Kingdom | B33: 18.30% | C33: =Table1[[#This Row],[Nuclear share of electricity production]]*0.891 -> 0.163053
A34: Ukraine | B34: 43.60% | C34: =Table1[[#This Row],[Nuclear share of electricity production]]*0.891 -> 0.388476
A35: United States | B35: 19.40% | C35: =Table1[[#This Row],[Nuclear share of electricity production]]*0.891 -> 0.172854
A37: reference: world-nuclear.org (2015)

Sheet CO2 Emission Factors
A1: Energy Inventory - CO2 Emission Factors for Common Fuels and Units | F1: Alternate Energy Inventory - CO2 Emissions Factors for Purchased Electricity
A2: The factors below were taken from: World Resources Institute (2008), GHG Protocol tool for stationary combustion, Version 4.0. Please refer to this reference for factors relevant to additional fuel types and for further information. Factors are based on the 1995 IPCC Second Assessment Report and are for the Manufacturing sector. Factors were determined by entering in 1 unit of fuel by volume or energy content into the Spreadsheet and copying the total tCO2e. | F2: The factors below were taken from: World Resources Institute (2012), GHG Protocol, Emission Factors from Cross Sector Tools (August 2012) and Energy GHG emissions from purchased Electricity Version 4.4 August, 2012 and the references therein. Please refer to these GHG Protocol references for additional factors and further information. For example, there are more specific regional factors for China and some other areas, factors relevant to the specific fuel mix (oil, coal, gas), and factors for earlier years. The factors below are for the most recent year of data available as of April, 26, 2013 and are for all fuel types.
A3: Fuel | B3: Fuel units | C3: Emissions factor (LHV if applicable) | D3: Factor units | F3: Country | G3: 2009 tCO2e/MWh (All fuel types) | I3: eGRID subregion name | J3: eGRID subregion annual CO2 output emission rate (kg/MWh) | K3: eGRID subregion annual CH4 output emission rate (kg/GWh) | L3: eGRID subregion annual N2O output emission rate (kg/GWh) | M3: 2009 Total tCO2e/MWh
A4: natural gas | B4: m3 | C4: 0.00189 | D4: tCO2e/m3 | F4: Albania | G4: 0.0112 | I4: ASCC Alaska Grid | J4: 580.99 | K4: 12.58 | L4: 3.49 | M4: =(J4+(K4/1000)*25+(L4/1000)*298)/1000 -> 0.582
A5: natural gas | B5: ccf | C5: 0.00534 | D5: tCO2e/ccf | F5: Algeria | G5: 0.5760 | I5: ASCC Miscellaneous | J5: 236.44 | K5: 9.88 | L5: 1.94 | M5: =(J5+(K5/1000)*25+(L5/1000)*298)/1000 -> 0.237
A6: natural gas | B6: mcf | C6: 0.05343 | D6: tCO2e/mcf | F6: Angola | G6: 0.2375 | I6: ERCOT All | J6: 536.02 | K6: 7.58 | L6: 5.94 | M6: 0.538
A7: natural gas | B7: mmBtu (LHV) | C7: 0.05925 | D7: tCO2e/mmBtu | F7: Argentina | G7: 0.3553 | I7: FRCC All | J7: 533.70 | K7: 17.80 | L7: 6.14 | M7: 0.536
A8: natural gas | B8: mmBtu (HHV) | C8: 0.05332 | D8: tCO2e/mmBtu | F8: Armenia | G8: 0.1080 | I8: HICC Miscellaneous | J8: 613.10 | K8: 32.84 | L8: 6.26 | M8: 0.616
A9: natural gas | B9: therm (LHV) | C9: 0.00592 | D9: tCO2e/therm | F9: Australia | G9: 0.8529 | I9: HICC Oahu | J9: 722.73 | K9: 46.15 | L9: 9.97 | M9: 0.727
A10: natural gas | B10: therm (HHV) | C10: 0.00533 | D10: tCO2e/therm | F10: Austria | G10: 0.1632 | I10: MRO East | J10: 721.96 | K10: 10.88 | L10: 12.27 | M10: 0.726
A11: liquefied petroleum distillates (LPG) including propane | B11: liter | C11: 0.00161 | D11: tCO2e/liter | F11: Azerbaijan | G11: 0.4434 | I11: MRO West | J11: 738.72 | K11: 13.06 | L11: 12.61 | M11: 0.743
A12: liquefied petroleum distillates (LPG) including propane | B12: gallon | C12: 0.00611 | D12: tCO2e/gallon | F12: Bahrain | G12: 0.6649 | I12: NPCC Long Island | J12: 611.44 | K12: 43.94 | L12: 5.61 | M12: 0.614
A13: motor gasoline | B13: liter | C13: 0.00228 | D13: tCO2e/liter | F13: Bangladesh | G13: 0.5853 | I13: NPCC New England | J13: 330.40 | K13: 34.33 | L13: 6.28 | M13: 0.333
A14: motor gasoline | B14: gallon | C14: 0.00863 | D14: tCO2e/gallon | F14: Belarus | G14: 0.3023 | I14: NPCC NYC/Westchester | J14: 276.99 | K14: 10.77 | L14: 1.27 | M14: 0.278
A15: diesel | B15: liter | C15: 0.00269 | D15: tCO2e/liter | F15: Belgium | G15: 0.2179 | I15: NPCC Upstate NY | J15: 225.85 | K15: 7.23 | L15: 3.07 | M15: 0.227
A16: diesel | B16: gallon | C16: 0.01016 | D16: tCO2e/gallon | F16: Benin | G16: 0.7250 | I16: RFC East | J16: 429.74 | K16: 12.17 | L16: 6.79 | M16: 0.432
A17: biomass: wood | B17: kg | C17: 0.00178 | D17: tCO2e/kg | F17: Bolivia | G17: 0.3933 | I17: RFC Michigan | J17: 752.72 | K17: 14.25 | L17: 12.65 | M17: 0.757
A18: biomass: wood | B18: metric ton | C18: =C17*1000 -> 1.77637 | D18: tCO2e/t | F18: Bosnia and Herzegovina | G18: 0.7760 | I18: RFC West | J18: 689.73 | K18: 8.22 | L18: 11.40 | M18: 0.693
F19: Botswana | G19: 2.0633 | I19: SERC Midwest | J19: 793.68 | K19: 8.88 | L19: 13.15 | M19: 0.798
F20: Brazil | G20: 0.0641 | I20: SERC Mississippi Valley | J20: 454.69 | K20: 8.82 | L20: 4.83 | M20: 0.456
F21: Brunei Darussalam | G21: 0.7552 | I21: SERC South | J21: 601.32 | K21: 10.10 | L21: 9.42 | M21: 0.604
F22: Bulgaria | G22: 0.4634 | I22: SERC Tennessee Valley | J22: 615.85 | K22: 7.84 | L22: 10.02 | M22: 0.619
F23: Cambodia | G23: 1.1509 | I23: SERC Virginia/Carolina | J23: 469.86 | K23: 9.76 | L23: 7.91 | M23: 0.472
F24: Cameroon | G24: 0.2427 | I24: SPP North | J24: 823.61 | K24: 9.53 | L24: 13.10 | M24: 0.828
F25: Canada | G25: 0.1672 | I25: SPP South | J25: 725.30 | K25: 10.55 | L25: 9.88 | M25: 0.729
F26: Chile | G26: 0.3728 | I26: WECC California | J26: 298.77 | K26: 13.13 | L26: 2.80 | M26: 0.300
F27: China (mainland) | G27: 0.7427 | I27: WECC Northwest | J27: 371.59 | K27: 6.94 | L27: 5.67 | M27: 0.373
F28: China (Taiwan) | G28: 0.6348 | I28: WECC Rockies | J28: 827.59 | K28: 10.09 | L28: 12.33 | M28: 0.832
F29: Colombia | G29: 0.1753 | I29: WECC Southwest | J29: 540.39 | K29: 8.68 | L29: 7.07 | M29: 0.543
F30: Congo | G30: 0.2068
F31: Costa Rica | G31: 0.0398
F32: Côte d'Ivoire | G32: 0.4264
F33: Croatia | G33: 0.2834
F34: Cuba | G34: 0.7515
F35: Cyprus | G35: 0.7443
F36: Czech Republic | G36: 0.5143
F37: Dem. People's Republic of Korea | G37: 0.4989
F38: Democratic Republic of Congo | G38: 0.0029
F39: Denmark | G39: 0.3027
F40: Dominican Republic | G40: 0.5905
F41: Ecuador | G41: 0.2896
F42: Egypt | G42: 0.4655
F43: El Salvador | G43: 0.3188
F44: Eritrea | G44: 0.6716
F45: Estonia | G45: 0.7039
F46: Ethiopia | G46: 0.1183
F47: Finland | G47: 0.2054
F48: France | G48: 0.0899
F49: FYR of Macedonia | G49: 0.7099
F50: Gabon | G50: 0.3221
F51: Georgia | G51: 0.1286
F52: Germany | G52: 0.4305
F53: Ghana | G53: 0.1865
F54: Gibraltar | G54: 0.7395
F55: Greece | G55: 0.7224
F56: Guatemala | G56: 0.3491
F57: Haiti | G57: 0.5471
F58: Honduras | G58: 0.3443
F59: Hong Kong, China | G59: 0.7630
F60: Hungary | G60: 0.3021
F61: Iceland | G61: 0.0004
F62: India | G62: 0.9514
F63: Indonesia | G63: 0.7457
F64: Iraq | G64: 0.6841
F65: Ireland | G65: 0.4652
F66: Islamic Republic of Iran | G66: 0.6300
F67: Israel | G67: 0.6949
F68: Italy | G68: 0.3864
F69: Jamaica | G69: 0.5445
F70: Japan | G70: 0.4147
F71: Jordan | G71: 0.5805
F72: Kazakhstan | G72: 0.4801
F73: Kenya | G73: 0.3949
F74: Korea | G74: 0.4977
F75: Kuwait | G75: 0.8696
F76: Kyrgyzstan | G76: 0.0810
F77: Latvia | G77: 0.1531
F78: Lebanon | G78: 0.7167
F79: Libyan Arab Jamahiriya | G79: 0.8718
F80: Lithuania | G80: 0.1112
F81: Luxembourg | G81: 0.3843
F82: Malaysia | G82: 0.6486
F83: Malta | G83: 0.8504
F84: Mexico | G84: 0.4550
F85: Middle East | G85: 0.6903
F86: Mongolia | G86: 0.5354
F87: Morocco | G87: 0.6384
F88: Mozambique | G88: 0.0005
F89: Myanmar | G89: 0.1958
F90: Namibia | G90: 0.2369
F91: Nepal | G91: 0.0043
F92: Netherlands | G92: 0.3745
F93: Netherlands Antilles | G93: 0.7069
F94: New Zealand | G94: 0.1665
F95: Nicaragua | G95: 0.5058
F96: Nigeria | G96: 0.4157
F97: Norway | G97: 0.0173
F98: Oman | G98: 0.8425
F99: Other Africa | G99: 0.4945
F100: Other Asia | G100: 0.2681
F101: Other Latin America | G101: 0.2489
F102: Pakistan | G102: 0.4577
F103: Panama | G103: 0.3022
F104: Paraguay | G104: 0.0000
F105: China (mainland) | G105: 0.7426
F106: Peru | G106: 0.2363
F107: Philippines | G107: 0.4782
F108: Poland | G108: 0.6402
F109: Portugal | G109: 0.3682
F110: Qatar | G110: 0.4940
F111: Republic of Moldova | G111: 0.4001
F112: Romania | G112: 0.4144
F113: Russian Federation | G113: 0.3174
F114: Saudi Arabia | G114: 0.7572
F115: Senegal | G115: 0.6145
F116: Serbia | G116: 0.6803
F117: Singapore | G117: 0.5189
F118: Slovak Republic | G118: 0.2217
F119: Slovenia | G119: 0.3160
F120: South Africa | G120: 0.9259
F121: Spain | G121: 0.2988
F122: Sri Lanka | G122: 0.4601
F123: Sudan | G123: 0.3556
F124: Sweden | G124: 0.0431
F125: Switzerland | G125: 0.0399
F126: Syrian Arab Republic | G126: 0.6409
F127: Tajikistan | G127: 0.0292
F128: Thailand | G128: 0.5134
F129: Togo | G129: 0.2016
F130: Trinidad and Tobago | G130: 0.7188
F131: Tunisia | G131: 0.5381
F132: Turkey | G132: 0.4799
F133: Turkmenistan | G133: 0.7895
F134: Ukraine | G134: 0.3740
F135: United Arab Emirates | G135: 0.6312
F136: United Kingdom | G136: 0.4495
F137: United Republic of Tanzania | G137: 0.2812
F138: United States | G138: 0.5082
F139: Uruguay | G139: 0.2532
F140: Uzbekistan | G140: 0.4615
F141: Venezuela | G141: 0.1986
F142: Vietnam | G142: 0.3841
F143: Yemen | G143: 0.6305
F144: Zambia | G144: 0.0032
F145: Zimbabwe | G145: 0.6190
